{"text_format":"1","workbook":"xlsx","n_sheets":3,"sheets":["Accueil","Listes","BD articles menus"],"not_rendered":{"charts":0,"images":0,"macros":1,"external_links":0,"defined_names":0,"comments":0,"pivot_tables":0},"unopened":[],"bounds":{"document_bytes":16777216,"sheet_cells":100000,"rows_first":2000,"rows_last":500,"rows_between":2000,"halvings":0,"cell_chars":16384,"cell_head_chars":4096},"cells_cut":0,"cells_raw":0,"read":"whole","date_system":"1900"}

{"sheet":"Accueil","index":0,"n_rows":41,"n_cols":11,"rows_kept":41,"cut":false,"hidden":false,"merged":[]}
[null,null,null,null,null,null,2025,null,null,"Open","Save"]
[null,null,null,null,null,null,null,null,null,"2024-10-15T18:26:13","2024-10-15T11:34:50"]
[null,null,null,null,null,null,null,null,null,"2024-10-16T12:00:47","2024-10-15T11:39:16"]
[null,null,null,null,null,null,null,null,null,"2024-10-16T16:39:44","2024-10-15T21:43:16"]
[null,null,null,null,null,null,null,null,null,"2024-10-16T17:12:32","2024-10-15T21:51:39"]
[null,null,null,null,null,null,null,null,null,"2024-10-16T17:51:15","2024-10-16T14:30:19"]
[null,null,null,null,null,null,null,null,null,"2024-10-16T21:03:28","2024-10-16T17:05:36"]
[null,null,null,null,null,null,null,null,null,"2024-10-17T10:53:02","2024-10-16T17:10:34"]
[null,null,null,null,null,null,null,null,null,"2024-10-17T16:14:32","2024-10-16T17:11:23"]
[null,null,null,null,null,null,null,null,null,"2024-10-17T21:28:03","2024-10-16T17:36:38"]
[null,null,null,null,null,null,null,null,null,"2024-10-17T21:41:34","2024-10-16T17:38:16"]
[null,null,null,null,null,null,null,null,null,"2024-10-18T16:37:12","2024-10-16T17:54:53"]
[null,null,null,null,null,null,null,null,null,"2024-10-18T17:46:14","2024-10-16T18:02:11"]
[null,null,null,null,null,null,null,null,null,"2024-10-18T19:19:28","2024-10-16T21:56:07"]
[null,null,null,null,null,null,null,null,null,null,"2024-10-17T13:44:05"]
[null,null,null,null,null,null,null,null,null,null,"2024-10-17T16:25:44"]
[null,null,null,null,null,null,null,null,null,null,"2024-10-17T16:43:03"]
[null,null,null,null,null,null,null,null,null,null,"2024-10-17T16:55:33"]
[null,null,null,null,null,null,null,null,null,null,"2024-10-17T17:15:14"]
[null,null,null,null,null,null,null,null,null,null,"2024-10-17T19:07:30"]
[null,null,null,null,null,null,null,null,null,null,"2024-10-17T19:14:34"]
[null,null,null,null,null,null,null,null,null,null,"2024-10-17T19:46:10"]
[null,null,null,null,null,null,null,null,null,null,"2024-10-17T21:20:28"]
[null,null,null,null,null,null,null,null,null,null,"2024-10-17T21:20:50"]
[null,null,null,null,null,null,null,null,null,null,"2024-10-17T21:28:16"]
[null,null,null,null,null,null,null,null,null,null,"2024-10-17T21:32:14"]
[null,null,null,null,null,null,null,null,null,null,"2024-10-17T21:33:54"]
[null,null,null,null,null,null,null,null,null,null,"2024-10-17T21:36:00"]
[null,null,null,null,null,null,null,null,null,null,"2024-10-17T21:37:53"]
[null,null,null,null,null,null,null,null,null,null,"2024-10-17T21:41:40"]
[null,null,null,null,null,null,null,null,null,null,"2024-10-17T21:48:43"]
[null,null,null,null,null,null,null,null,null,null,"2024-10-17T21:50:01"]
[null,null,null,null,null,null,null,null,null,null,"2024-10-18T17:00:28"]
[null,null,null,null,null,null,null,null,null,null,"2024-10-18T17:16:03"]
[null,null,null,null,null,null,null,null,null,null,"2024-10-18T17:44:06"]
[null,null,null,null,null,null,null,null,null,null,"2024-10-18T18:10:52"]
[null,null,null,null,null,null,null,null,null,null,"2024-10-18T21:27:18"]
[null,null,null,null,null,null,null,null,null,null,"2024-10-18T22:34:33"]
[null,null,null,null,null,null,null,null,null,null,"2024-10-18T22:34:43"]
[null,null,null,null,null,null,null,null,null,null,"2024-10-18T22:35:05"]
[null,null,null,null,null,null,null,null,null,null,"2024-10-18T22:36:15"]

{"sheet":"Listes","index":1,"n_rows":34,"n_cols":55,"rows_kept":34,"cut":false,"hidden":false,"merged":[[2,52,2,53],[2,0,2,1],[2,39,2,40],[2,42,2,43],[2,45,2,46],[2,3,2,4],[2,6,2,7],[2,9,2,10],[2,12,2,13],[2,15,2,16],[2,33,2,34],[2,36,2,37],[2,18,2,19],[2,21,2,22],[2,24,2,25],[2,27,2,28],[2,30,2,31]]}
["Listes.",null,null,null,null,null,null,null,null,null,null,null,null,null,null,null,null,null,null,null,null,null,null,null,null,null,null,null,null,null,null,null,null,null,null,null,null,null,null,null,null,null,null,null,null,null,null,null,null,null,null,null,null,null,2024]
[]
["TabNatureCréation",null,null,"TabCatégorie",null,null,"TabDMR",null,null,"TabDS",null,null,"TabDWE",null,null,"TabLMR",null,null,"TabLSLM",null,null,"TabLSMJ",null,null,"TabLSV",null,null,"TabLWES",null,null,"TabLWED",null,null,"TabVMR",null,null,"TabVMWE",null,null,"TabVS",null,null,"TabPAM",null,null,"TabCAM",null,null,"TabPMVWE",null,"TabMois",null,"TabJF"]
["Nature création","Code nature création",null,"Catégorie","Code catégorie",null,"Dessert DMR","Code dessert DMR",null,"Dessert soir","Code dessert soir",null,"Desserts weekend","Code desserts weekend",null,"Légumes midi retraite","Code légumes midi retraite",null,"Légumes soirs lundi mardi","Code légumes soirs lundi mardi",null,"Légumes soirs mercredi jeudi","Code légumes soirs mercredi jeudi",null,"Légumes soirs vendredi","Code légumes soirs vendredi",null,"Légumes weekend samedi","Code légumes weekend samedi",null,"Légumes weekend dimanche","Code légumes weekend dimanche",null,"Viandes midi retraite","Code viandes midi retraite",null,"Viandes midi weekend","Code viandes midi weekend",null,"Viandes soirs","Code viandes soirs",null,"Période articles menus","Code période articlesmenus",null,"Conditionnement articles menus","Code conditionnement articles menus",null,"Période menu viande weekend",null,"Mois",null,"Jour férié","Date jour férié"]
["Création articles menus","CAM",null,"Dessert midi retraite","DMR",null,"Pomme","DMR01",null,"Pomme","DS01",null,"Ananas","DWE01",null,"Asperges","LMR01",null,"Cassoulet","LSLM01",null,"Macédoine de légumes","LSMJ01",null,"Asperges","LSV01",null,"Pâtes à la sauce tomates","LWES01",null,"Asperges","LWED01",null,"Rôti d'agneau","VMR01",null,"Agneau","VMWE01",null,"Bifteck haché de bœuf","VS01",null,"Dimanche midi","PAM01",null,"1 boîte de 2 pour 2 repas (Avocats, Gâteaux samedi dimanche)","CAM01",null,"Premier semestre 2024",null,{"$f":"\"Janvier \"&Accueil!$G$1","v":"Janvier 2025"},null,"Jour de l'an",{"$f":"DATE($BC$1,1,1)","v":"2024-01-01"}]
["Création menus midi retraite","CMMR",null,"Dessert soir","DS",null,null,null,null,null,null,null,"Autres fruits","DWE02",null,"Avocat","LMR02",null,"Choucroute","LSLM02",null,"Petits pois","LSMJ02",null,"Avocat","LSV02",null,"Pâtes au beurre","LWES02",null,"Chips","LWED02",null,"Rôti de bœuf","VMR02",null,"Bœuf","VMWE02",null,"Bifteck haché de cheval","VS02",null,"Dimanche midi et soir","PAM02",null,"1 boîte de 2, 4 ou 6 œufs. 1, 2 ou 3 œufs pour 1 repas","CAM02",null,"Deuxième semestre 2024",null,{"$f":"\"Février \"&Accueil!$G$1","v":"Février 2025"},null,"Pâques",{"$f":"DATE(YEAR(BB5),3,29.56+0.979*MOD(204-11*MOD(YEAR(BB5),19),30)-WEEKDAY(DATE(YEAR(BB5),3,28.56+0.979*MOD(204-11*MOD(YEAR(BB5),19),30))))","v":"2024-03-31"}]
["Création menus journaliers","CMJ",null,"Desserts weekend","DWE",null,null,null,null,null,null,null,"Avocats","DWE03",null,"Carottes","LMR03",null,"Chou-fleur","LSLM03",null,"Petits pois et jeunes carottes","LSMJ03",null,"Betteraves rouges","LSV03",null,"Pâtes au fromage râpé","LWES03",null,"Frites","LWED03",null,"Rôti de cheval","VMR03",null,"Cheval","VMWE03",null,"Bifteck haché de veau","VS03",null,"Dimanche soir","PAM03",null,"1 boîte de 7. 1 pour 1 repas (Quiche lorraine)","CAM03",null,null,null,{"$f":"\"Mars \"&Accueil!$G$1","v":"Mars 2025"},null,"Lundi de Pâques",{"$f":"BB6+1","v":"2024-04-01"}]
["Création menus viande midi weekend","CMVMWE",null,"Légumes midi retraite","LMR",null,null,null,null,null,null,null,"Bananes","DWE04",null,"Céleri","LMR04",null,"Choux de Bruxelles","LSLM04",null,"Ratatouille","LSMJ04",null,"Carottes","LSV04",null,null,null,null,"Haricots verts","LWED04",null,"Rôti de porc","VMR04",null,"Dinde","VMWE04",null,"Bouchées à la reine","VS04",null,"Lundi à dimanche soirs","PAM04",null,"1 boîte pour 1 repas (Champignons, Salsifis, Thon)","CAM04",null,null,null,{"$f":"\"Avril \"&Accueil!$G$1","v":"Avril 2025"},null,"Fête du travail",{"$f":"DATE(BC2,5,1)","v":"1900-05-01"}]
[null,null,null,"Légumes soirs lundi mardi","LSLM",null,null,null,null,null,null,null,"Clémentines","DWE05",null,"Champignons","LMR05",null,"Couscous","LSLM05",null,"Raviolis","LSMJ05",null,"Céleri","LSV05",null,null,null,null,null,null,null,"Rôti de veau","VMR05",null,"Poisson","VMWE05",null,"Boudin","VS05",null,"Lundi à vendredi midis","PAM05",null,"1 boîte pour 2 repas (Fruits au sirop, Cassoulet, Choucroute, Choux de Bruxelles, Endives, Haricots verts, Maïs, Paella, Quenelles, Macédoine de légumes, Petits pois, Petits pois et jeunes carottes, Ratatouille, Raviolis, Tomates pelées, Bouchées à la reine, Roulés au fromage, Viande cassoulet, Viande choucroute, Viande paella)","CAM05",null,null,null,{"$f":"\"Mai \"&Accueil!$G$1","v":"Mai 2025"},null,"Victoire 1945",{"$f":"DATE(BC2,5,8)","v":"1900-05-08"}]
[null,null,null,"Légumes soirs mercredi jeudi","LSMJ",null,null,null,null,null,null,null,"Crème","DWE06",null,"Concombre","LMR06",null,"Endives","LSLM06",null,"Tomates pelées","LSMJ06",null,"Champignons","LSV06",null,null,null,null,null,null,null,null,null,null,"Porc","VMWE06",null,"Cervelas","VS06",null,"Lundi à vendredi soirs","PAM06",null,"1 morceau pour 4 repas (Boudin, Cervelas, Jambonneau)","CAM06",null,null,null,{"$f":"\"Juin \"&Accueil!$G$1","v":"Juin 2025"},null,"Jeudi de l'ascension",{"$f":"BB7+38","v":"2024-05-09"}]
[null,null,null,"Légumes soirs vendredi","LSV",null,null,null,null,null,null,null,"Dattes","DWE07",null,"Couscous","LMR07",null,"Haricots verts","LSLM07",null,null,null,null,"Concombre","LSV07",null,null,null,null,null,null,null,null,null,null,"Veau","VMWE07",null,"Cœur","VS07",null,"Lundi et mardi soirs","PAM07",null,"1 pack de 4 pots pour le weekend. 1 pot pour 1 repas (Crème, Fromage blanc, Gâteau de riz, Gâteau de semoule, Mousse au chocolat, Riz au lait, Yaourts dessert )","CAM07",null,null,null,{"$f":"\"Juillet \"&Accueil!$G$1","v":"Juillet 2025"},null,"Pentecôte",{"$f":"BB6+49","v":"2024-05-19"}]
[null,null,null,"Légumes weekend dimanche","LWED",null,null,null,null,null,null,null,"Figues","DWE08",null,"Maïs","LMR08",null,"Maïs","LSLM08",null,null,null,null,"Radis vendredi soir","LSV08",null,null,null,null,null,null,null,null,null,null,null,null,null,"Croque-monsieur","VS08",null,"Mercredi et jeudi soirs","PAM08",null,"1 packs de 6 pots pour la journée. 3 pots pour 1 repas (Petits suisses)","CAM08",null,null,null,{"$f":"\"Août \"&Accueil!$G$1","v":"Août 2025"},null,"Lundi de Pentecôte",{"$f":"BB11+1","v":"2024-05-20"}]
[null,null,null,"Légumes weekend samedi","LWES",null,null,null,null,null,null,null,"Fromage blanc","DWE09",null,"Pâtes à la sauce tomates","LMR09",null,"Paella","LSLM09",null,null,null,null,"Salsifis","LSV09",null,null,null,null,null,null,null,null,null,null,null,null,null,"Foie","VS09",null,"Samedi et dimanche midis","PAM09",null,"1 paquet pour 2 repas (Bifteck haché de bœuf, Bifteck haché de veau, Cœur, Foie, Jambon, Mortadelle, Pizza, Salami, Saucisses)","CAM09",null,null,null,{"$f":"\"Septembre \"&Accueil!$G$1","v":"Septembre 2025"},null,"Fête nationale",{"$f":"DATE(BC1,7,14)","v":"2024-07-14"}]
[null,null,null,"Viandes midi retraite","VMR",null,null,null,null,null,null,null,"Fruits au sirop","DWE10",null,"Pâtes au beurre","LMR10",null,"Poireau","LSLM10",null,null,null,null,"Salade","LSV10",null,null,null,null,null,null,null,null,null,null,null,null,null,"Fromage de tête","VS10",null,"Samedi et dimanche midis et soirs","PAM10",null,"1 paquet pour 5 repas (Betteraves rouges)","CAM10",null,null,null,{"$f":"\"Octobre \"&Accueil!$G$1","v":"Octobre 2025"},null,"Assomption",{"$f":"DATE(BC1,8,15)","v":"2024-08-15"}]
[null,null,null,"Viandes midi weekend","VMWE",null,null,null,null,null,null,null,"Fruits de saison","DWE11",null,"Poireau","LMR11",null,"Pomme de terre","LSLM11",null,null,null,null,"Tomates","LSV11",null,null,null,null,null,null,null,null,null,null,null,null,null,"Jambon","VS11",null,"Samedi midi et soir","PAM11",null,"1 pot pour 1 repas (Asperges)","CAM11",null,null,null,{"$f":"\"Novembre \"&Accueil!$G$1","v":"Novembre 2025"},null,"Toussaint",{"$f":"DATE(BC1,11,1)","v":"2024-11-01"}]
[null,null,null,"Viandes soirs","VS",null,null,null,null,null,null,null,"Gâteau de riz","DWE12",null,"Pomme de terre","LMR12",null,"Purée","LSLM12",null,null,null,null,null,null,null,null,null,null,null,null,null,null,null,null,null,null,null,"Jambonneau","VS12",null,"Vendredi soirs","PAM12",null,"1 pour 1 repas (Bananes, Oranges, Poireau, Pomme de terre, Concombre)","CAM12",null,null,null,{"$f":"\"Décembre \"&Accueil!$G$1","v":"Décembre 2025"},null,"Armistice 1918",{"$f":"DATE(BC1,11,11)","v":"2024-11-11"}]
[null,null,null,null,null,null,null,null,null,null,null,null,"Gâteau de semoule","DWE13",null,"Purée","LMR13",null,"Quenelles","LSLM13",null,null,null,null,null,null,null,null,null,null,null,null,null,null,null,null,null,null,null,"Mortadelle","VS13",null,null,null,null,"1 sachet de 2 kilogrammes. 1 pomme pour 1 repas.","CAM13",null,null,null,null,null,"Noël",{"$f":"DATE(BC1,12,25)","v":"2024-12-25"}]
[null,null,null,null,null,null,null,null,null,null,null,null,"Gâteaux samedi dimanche","DWE14",null,"Radis midi retraite","LMR14",null,"Riz","LSLM14",null,null,null,null,null,null,null,null,null,null,null,null,null,null,null,null,null,null,null,"Œufs","VS14",null,null,null,null,"1 sachet de 30 tranches ou de 32 tranches.  5 Tranches pour 1 repas (Saucisson)","CAM14"]
[null,null,null,null,null,null,null,null,null,null,null,null,"Mousse au chocolat","DWE15",null,"Riz","LMR15",null,null,null,null,null,null,null,null,null,null,null,null,null,null,null,null,null,null,null,null,null,null,"Pizza","VS15",null,null,null,null,"1 sachet pour 1 repas (Radis vendredi soir, Salade)","CAM15"]
[null,null,null,null,null,null,null,null,null,null,null,null,"Oranges","DWE16",null,"Salade","LMR16",null,null,null,null,null,null,null,null,null,null,null,null,null,null,null,null,null,null,null,null,null,null,"Poisson","VS16",null,null,null,null,"1 sachet pour 2 repas (Radis midi retraite, Chips, Croque-monsieur)","CAM16"]
[null,null,null,null,null,null,null,null,null,null,null,null,"Petits suisses","DWE17",null,"Tomates","LMR17",null,null,null,null,null,null,null,null,null,null,null,null,null,null,null,null,null,null,null,null,null,null,"Quiche lorraine","VS17",null,null,null,null,"1 sachet pour 4 repas (Dattes, Figues, Pruneaux)","CAM17"]
[null,null,null,null,null,null,null,null,null,null,null,null,"Pruneaux","DWE18",null,null,null,null,null,null,null,null,null,null,null,null,null,null,null,null,null,null,null,null,null,null,null,null,null,"Roulade à la pistache","VS18",null,null,null,null,"1 tranche por 2 repas (Fromage de tête, Tête persillée)","CAM18"]
[null,null,null,null,null,null,null,null,null,null,null,null,"Riz au lait","DWE19",null,null,null,null,null,null,null,null,null,null,null,null,null,null,null,null,null,null,null,null,null,null,null,null,null,"Roulés au fromage","VS19",null,null,null,null,"1 tranche pour 1 repas (Agneau, Bœuf, Cheval, Dinde, Porc, Veau : Midi weekend)","CAM19"]
[null,null,null,null,null,null,null,null,null,null,null,null,"Tapioca","DWE20",null,null,null,null,null,null,null,null,null,null,null,null,null,null,null,null,null,null,null,null,null,null,null,null,null,"Salami","VS20",null,null,null,null,"125 grammes pour 1 repas (Bifteck haché de cheval)","CAM20"]
[null,null,null,null,null,null,null,null,null,null,null,null,"Yaourts dessert","DWE21",null,null,null,null,null,null,null,null,null,null,null,null,null,null,null,null,null,null,null,null,null,null,null,null,null,"Saucisses","VS21",null,null,null,null,"20 frites pour 1 repas (Frites)","CAM21"]
[null,null,null,null,null,null,null,null,null,null,null,null,null,null,null,null,null,null,null,null,null,null,null,null,null,null,null,null,null,null,null,null,null,null,null,null,null,null,null,"Saucisson","VS22",null,null,null,null,"25 grammes pour 1 repas (Tapioca, Couscous, Purée, Riz)","CAM22"]
[null,null,null,null,null,null,null,null,null,null,null,null,null,null,null,null,null,null,null,null,null,null,null,null,null,null,null,null,null,null,null,null,null,null,null,null,null,null,null,"Tête persillée","VS23",null,null,null,null,"3 tranches pour 1 repas (Roulade à la pistache, Tête roulée)","CAM23"]
[null,null,null,null,null,null,null,null,null,null,null,null,null,null,null,null,null,null,null,null,null,null,null,null,null,null,null,null,null,null,null,null,null,null,null,null,null,null,null,"Tête roulée","VS24",null,null,null,null,"5 cuillères pour 1 repas (Pâtes à la sauce tomates, Pâtes au beurre, Pâtes au fromage râpé)","CAM24"]
[null,null,null,null,null,null,null,null,null,null,null,null,null,null,null,null,null,null,null,null,null,null,null,null,null,null,null,null,null,null,null,null,null,null,null,null,null,null,null,"Thon","VS25",null,null,null,null,"Unité : 1 branche pour 1 repas (Céleri)","CAM25"]
[null,null,null,null,null,null,null,null,null,null,null,null,null,null,null,null,null,null,null,null,null,null,null,null,null,null,null,null,null,null,null,null,null,null,null,null,null,null,null,"Viande cassoulet","VS26",null,null,null,null,"Unité : 1 pour 1 repas (Poisson)","CAM26"]
[null,null,null,null,null,null,null,null,null,null,null,null,null,null,null,null,null,null,null,null,null,null,null,null,null,null,null,null,null,null,null,null,null,null,null,null,null,null,null,"Viande choucroute","VS27",null,null,null,null,"Unité : 1 pour 2 repas (Chou-fleur)","CAM27"]
[null,null,null,null,null,null,null,null,null,null,null,null,null,null,null,null,null,null,null,null,null,null,null,null,null,null,null,null,null,null,null,null,null,null,null,null,null,null,null,"Viande paella","VS28",null,null,null,null,"Unité : 1 pour 4 repas (Ananas)","CAM28"]
[null,null,null,null,null,null,null,null,null,null,null,null,null,null,null,null,null,null,null,null,null,null,null,null,null,null,null,null,null,null,null,null,null,null,null,null,null,null,null,null,null,null,null,null,null,"Unité : 2 à 4 pour 1 repas (Autres fruits, Clémentines, fruits de saison)","CAM29"]
[null,null,null,null,null,null,null,null,null,null,null,null,null,null,null,null,null,null,null,null,null,null,null,null,null,null,null,null,null,null,null,null,null,null,null,null,null,null,null,null,null,null,null,null,null,"Unité : 2 pour 1 repas (Carottes, Tomates)","CAM30"]

{"sheet":"BD articles menus","index":2,"n_rows":0,"n_cols":0,"rows_kept":0,"cut":false,"hidden":false,"merged":[]}